bitfinex/quotes_BTCUSD_20250813
["timestamp","ask_amount","ask_price","bid_price","bid_amount"]
[1755121938473,0.39108602,122290.0,122280.0,0.82544]
[1755121939104,0.83958124,122290.0,122280.0,0.82544]
[1755121939577,0.39108602,122290.0,122280.0,0.82544]
[1755121941192,0.41608602,122290.0,122280.0,0.82544]
[1755121941546,1.20458124,122290.0,122280.0,0.92736]
[1755121941895,0.78079437,122290.0,122280.0,0.92736]
[1755121942808,1.22928959,122290.0,122280.0,0.92736]
[1755121943266,0.78079437,122290.0,122280.0,0.92736]
[1755121943444,0.78079437,122290.0,122280.0,0.60292]
[1755121943626,1.22928959,122290.0,122280.0,0.9274]
[1755121944659,0.78079437,122290.0,122280.0,0.9274]
[1755121944892,1.22928959,122290.0,122280.0,0.9274]
[1755121945100,0.73978437,122290.0,122280.0,0.9274]
[1755121945272,1.18827959,122290.0,122280.0,0.9274]
[1755121946044,0.67293666,122290.0,122280.0,0.9274]
[1755121946266,0.67293666,122290.0,122280.0,0.799]
[1755121946476,0.67293666,122290.0,122280.0,0.92728]
[1755121946680,1.12143188,122290.0,122280.0,0.92728]
[1755121950649,0.99227288,122290.0,122280.0,0.92728]
[1755121952275,1.4819981,122290.0,122280.0,0.43718151]
[1755121952476,1.71168,122290.0,122280.0,0.62127151]
[1755121952675,1.72679566,122290.0,122280.0,0.74130296]
[1755121952854,1.48076556,122290.0,122280.0,0.74130296]
[1755121953057,1.48076556,122290.0,122280.0,0.70454447]
[1755121953058,1.47237304,122290.0,122280.0,0.70454447]
[1755121953367,1.62791871,122290.0,122280.0,0.70354447]
[1755121953528,1.64391871,122290.0,122280.0,0.66878598]
[1755121953935,1.64391871,122290.0,122280.0,0.66061743]
[1755121954441,1.64391871,122290.0,122280.0,0.62385894]
[1755121954826,1.64391871,122290.0,122280.0,0.61569039]
[1755121955051,1.66220784,122290.0,122280.0,0.58710045]
[1755121955297,1.66220784,122290.0,122280.0,0.44977266]
[1755121955504,1.66220784,122290.0,122280.0,0.44160411]
[1755121955755,0.025,122260.0,122250.0,0.11625018]
[1755121955966,0.89831847,122260.0,122250.0,0.31233018]
[1755121956144,0.90131847,122260.0,122250.0,0.31233018]
[1755121956501,0.92584147,122260.0,122250.0,0.31233018]
[1755121956690,0.92584147,122260.0,122250.0,0.44041018]
[1755121957118,0.93084147,122260.0,122250.0,0.44141018]
[1755121958566,0.47724625,122260.0,122250.0,0.44641018]
[1755121958770,0.47934625,122260.0,122250.0,0.44641018]
[1755121958930,0.45224625,122260.0,122250.0,0.44641018]
[1755121959138,0.47724625,122260.0,122250.0,0.31833018]
[1755121959348,0.95584147,122260.0,122250.0,0.44173018]
[1755121961145,0.95584147,122260.0,122250.0,0.31337018]
[1755121961359,0.95584147,122260.0,122250.0,0.44177018]
[1755121961490,0.95584147,122260.0,122250.0,0.11725018]
[1755121961700,0.97093214,122260.0,122250.0,0.44177018]
[1755121962372,0.97093214,122260.0,122250.0,0.4335191]
[1755121962572,0.97093214,122260.0,122250.0,0.29702802]
[1755121962775,0.97093214,122260.0,122250.0,0.42534802]
[1755121962979,0.97093214,122260.0,122250.0,0.41717669]
[1755121963414,0.97093214,122260.0,122250.0,0.28068536]
[1755121963619,0.99581394,122260.0,122250.0,0.40896536]
[1755121963837,0.99581394,122260.0,122250.0,0.40079403]
[1755121964280,0.99581394,122260.0,122250.0,0.3926227]
[1755121964701,0.99581394,122260.0,122250.0,0.38445137]
[1755121965128,0.99581394,122260.0,122250.0,0.24800004]
[1755121965346,1.60789496,122260.0,122250.0,0.02328036]
[1755121965551,1.60789496,122260.0,122250.0,0.33946903]
[1755121965760,1.15939974,122260.0,122250.0,0.33946903]
[1755121966011,1.15939974,122260.0,122250.0,0.3312977]
[1755121966420,0.99581394,122260.0,122250.0,0.32312637]
[1755121966812,0.99581394,122260.0,122250.0,0.31495504]
[1755121967026,0.99581394,122260.0,122250.0,0.30678371]
[1755121967364,0.99581394,122260.0,122250.0,0.29861238]
[1755121967569,1.01410307,122260.0,122250.0,0.29861238]
[1755121967787,1.01410307,122260.0,122250.0,0.29044105]
[1755121967987,0.99581394,122260.0,122250.0,0.29044105]
[1755121968193,0.99581394,122260.0,122250.0,0.28226972]
[1755121968595,0.99581394,122260.0,122250.0,0.27409678]
[1755121968993,0.99581394,122260.0,122250.0,0.26592384]
[1755121969207,0.34,122250.0,122240.0,0.1202469]
[1755121969379,0.91640914,122250.0,122240.0,0.4444869]
[1755121970018,0.94093614,122250.0,122240.0,0.1202469]
[1755121970204,0.94093614,122250.0,122240.0,0.4444469]
[1755121970405,0.9410836,122250.0,122240.0,0.4444469]
[1755121970605,0.9440836,122250.0,122240.0,0.4444469]
[1755121971249,0.9470836,122250.0,122240.0,0.4454469]
[1755121972189,0.9419836,122250.0,122240.0,0.4504469]
[1755121972397,0.46848838,122250.0,122240.0,0.4504469]
[1755121972594,0.9169836,122250.0,122240.0,0.4504469]
[1755121972800,0.9419836,122250.0,122240.0,0.4504469]
[1755121972977,0.04576513,122250.0,122240.0,0.4904469]
[1755121973140,0.02123813,122250.0,122240.0,0.4904469]
[1755121974419,0.49473335,122250.0,122240.0,0.3624069]
[1755121974640,0.04623813,122250.0,122240.0,0.4902869]
[1755121974852,0.49473335,122250.0,122240.0,0.4902869]
[1755121975066,0.02123813,122250.0,122240.0,0.3883269]
[1755121975294,0.49473335,122250.0,122240.0,0.3883269]
[1755121975656,0.04623813,122250.0,122240.0,0.3881269]
[1755121975868,0.04023813,122250.0,122240.0,0.3881269]
[1755121976101,0.01723813,122250.0,122240.0,0.3881269]
[1755121976276,0.01923813,122250.0,122240.0,0.3881269]
[1755121976486,0.01923813,122250.0,122240.0,0.3881669]
[1755121976687,0.01923813,122250.0,122240.0,0.1920069]
[1755121977967,0.01923813,122250.0,122240.0,0.1919269]
[1755121981267,0.01925718,122250.0,122240.0,0.1919269]
[1755121981476,0.01925718,122250.0,122240.0,0.4900869]
[1755121981902,0.00414746,122250.0,122240.0,0.4900869]
[1755121982326,0.00414746,122250.0,122240.0,0.83658212]
[1755121982547,0.00377968,122250.0,122240.0,0.91930537]
[1755121983004,0.00377968,122250.0,122240.0,0.27465015]
[1755121983432,0.00377968,122250.0,122240.0,0.72314537]
[1755121983644,0.44849522,122280.0,122240.0,0.72314537]
[1755121983847,0.001,122250.0,122240.0,0.68010537]
[1755121984058,0.002,122250.0,122240.0,0.72548537]
[1755121984726,0.001,122250.0,122240.0,0.72548537]
[1755121984940,0.001,122250.0,122240.0,0.73399516]
[1755121985146,0.00112131,122250.0,122240.0,0.73399516]
[1755121985357,0.00112131,122250.0,122240.0,1.07399516]
[1755121985793,0.00112131,122250.0,122240.0,0.62549994]
[1755121986013,0.00112131,122250.0,122240.0,1.07399516]
[1755121986215,0.00012131,122250.0,122240.0,1.07299516]
[1755121986561,0.00012131,122250.0,122240.0,1.07399516]
[1755121986890,0.00112131,122250.0,122240.0,1.07599516]
[1755121987537,0.00112131,122250.0,122240.0,1.52449038]
[1755121989170,0.00112131,122250.0,122240.0,1.39585038]
[1755121989330,0.00112131,122250.0,122240.0,1.52485038]
[1755121990789,0.00012131,122250.0,122240.0,1.52185038]
[1755121991002,0.00112131,122250.0,122240.0,1.52485038]
[1755121991159,0.00112131,122250.0,122240.0,1.61066038]
[1755121991579,0.00112131,122250.0,122240.0,1.01370994]
[1755121991741,0.00112131,122250.0,122240.0,1.91070038]
[1755121993658,0.00112131,122250.0,122240.0,1.80874038]
[1755121994085,0.00112131,122250.0,122240.0,1.61266038]
[1755121994468,0.00112131,122250.0,122240.0,1.48366038]
[1755121994651,0.00112131,122250.0,122240.0,1.16416516]
[1755121995071,0.00112131,122250.0,122240.0,1.61266038]
[1755121995659,0.00112131,122250.0,122240.0,0.71566994]
[1755121995907,0.00112131,122250.0,122240.0,1.61266038]
[1755121996624,0.00112131,122250.0,122240.0,0.71566994]
[1755121996848,0.00112131,122250.0,122240.0,1.61266038]
[1755121997052,0.00112131,122250.0,122240.0,1.60415059]
[1755121998971,0.00112131,122250.0,122240.0,1.62866059]
[1755121999949,0.00012131,122250.0,122240.0,1.62366059]
[1755122000149,0.00112131,122250.0,122240.0,1.62966059]
[1755122000353,0.00012131,122250.0,122240.0,1.62666059]
[1755122000564,0.00012131,122250.0,122240.0,1.62366059]
[1755122001029,0.00012131,122250.0,122240.0,1.62666059]
[1755122001466,0.00112131,122250.0,122240.0,1.72862059]
[1755122001695,0.00112131,122250.0,122240.0,1.92466059]
[1755122003202,0.00312131,122250.0,122240.0,1.92566059]
[1755122005080,0.00312131,122250.0,122240.0,2.37446059]
[1755122006195,0.00312131,122250.0,122240.0,2.38274459]
[1755122007213,0.00312131,122250.0,122240.0,2.09474459]
[1755122007612,0.00312131,122250.0,122240.0,2.11110584]
[1755122007963,0.00312131,122250.0,122240.0,2.62996184]
[1755122008786,0.00312131,122250.0,122240.0,2.54397384]
[1755122010526,0.00312131,122250.0,122240.0,2.56897384]
[1755122011458,0.00312131,122250.0,122240.0,2.67089384]
[1755122011689,0.00312131,122250.0,122240.0,2.86693384]
[1755122013435,0.00312131,122250.0,122240.0,2.76501384]
[1755122014511,0.00312131,122250.0,122240.0,2.56897384]
[1755122018124,0.00212131,122250.0,122240.0,2.56597384]
[1755122018358,0.00212131,122250.0,122240.0,2.56697384]
[1755122019442,0.00012131,122250.0,122240.0,2.56597384]
[1755122019587,0.00012131,122250.0,122240.0,2.56697384]
[1755122019789,0.00112131,122250.0,122240.0,2.56697384]
[1755122020943,0.00012131,122250.0,122240.0,2.56597384]
[1755122021174,0.00012131,122250.0,122240.0,2.56497384]
[1755122021385,0.00112131,122250.0,122240.0,2.56597384]
[1755122021594,0.00112131,122250.0,122240.0,2.96585384]
[1755122021954,0.00112131,122250.0,122240.0,2.0688634]
[1755122022156,0.00112131,122250.0,122240.0,2.96585384]
[1755122022973,0.00112131,122250.0,122240.0,2.96597715]
[1755122023679,0.00112131,122250.0,122240.0,3.21063237]
[1755122023831,0.00112131,122250.0,122240.0,3.12149157]
[1755122024625,0.00012131,122250.0,122240.0,3.12049157]
[1755122024863,0.00012131,122250.0,122240.0,3.12349157]
[1755122025088,0.03062916,122300.0,122290.0,0.55065978]
[1755122025297,0.03075053,122300.0,122290.0,2.39821534]
[1755122025502,0.03075053,122300.0,122290.0,2.42492865]
[1755122025724,0.02320902,122300.0,122290.0,2.87342387]
[1755122025939,0.02320902,122300.0,122290.0,2.47866265]
[1755122026162,0.01518552,122300.0,122290.0,2.91514887]
[1755122026407,0.01518552,122300.0,122290.0,2.9395119]
[1755122026613,0.01618552,122300.0,122290.0,2.9405119]
[1755122026820,0.01618552,122300.0,122290.0,2.4917119]
[1755122027386,0.01518552,122300.0,122290.0,2.4907119]
[1755122027582,0.01718552,122300.0,122290.0,2.4917119]
[1755122027961,0.01618552,122300.0,122290.0,2.4917119]
[1755122028161,0.00316,122340.0,122320.0,0.0245248]
[1755122028362,0.06696908,122350.0,122330.0,0.74514847]
[1755122028631,0.06696908,122350.0,122340.0,0.74502847]
[1755122028821,0.06901908,122350.0,122340.0,0.74502847]
[1755122029439,0.07217908,122350.0,122340.0,1.0935183]
[1755122029643,0.07217908,122350.0,122340.0,1.09364161]
[1755122031271,0.07217908,122350.0,122340.0,1.00783161]
[1755122031476,0.07217908,122350.0,122340.0,1.13642492]
[1755122031708,0.00533137,122350.0,122340.0,1.33238492]
[1755122033714,0.00533137,122350.0,122340.0,1.23050492]
[1755122033926,0.00012137,122350.0,122340.0,2.83200702]
[1755122034153,0.00012137,122350.0,122340.0,2.63860702]
[1755122034359,0.00012137,122350.0,122340.0,2.62225914]
[1755122034566,0.00712137,122350.0,122340.0,2.62225914]
[1755122034907,0.01312137,122350.0,122340.0,2.64674514]
[1755122035311,0.00712137,122350.0,122340.0,2.64674514]
[1755122035705,0.01012137,122350.0,122340.0,2.64674514]
[1755122036056,0.01012137,122350.0,122340.0,2.51874514]
[1755122036267,0.00312137,122350.0,122340.0,2.64678514]
[1755122036616,0.00812137,122350.0,122340.0,2.64778514]
[1755122036816,0.00812137,122350.0,122340.0,2.64678514]
[1755122037256,0.00303018,122350.0,122340.0,2.27974302]
[1755122037429,0.00303018,122350.0,122340.0,2.16390733]
[1755122037628,0.00303018,122350.0,122340.0,2.28010302]
[1755122038105,0.00303018,122350.0,122340.0,2.29230733]
[1755122038520,0.00303018,122350.0,122340.0,2.28010302]
[1755122038726,0.00598018,122350.0,122340.0,0.99024761]
[1755122038898,0.00603,122350.0,122340.0,0.77860761]
[1755122039122,0.00503,122350.0,122340.0,0.77860761]
[1755122039483,0.00603,122350.0,122340.0,1.11860761]
[1755122039798,0.00803,122350.0,122340.0,1.11860761]
[1755122040200,0.00803,122350.0,122340.0,0.90431761]
[1755122040400,0.00803,122350.0,122340.0,0.24434239]
[1755122040605,0.00803,122350.0,122340.0,0.66835161]
[1755122040963,0.00703,122350.0,122340.0,1.00835161]
[1755122041367,0.00703,122350.0,122340.0,0.64578639]
[1755122041605,0.00703,122350.0,122340.0,1.39200161]
[1755122042429,0.00703,122350.0,122340.0,1.39280161]
[1755122046321,0.00703,122350.0,122340.0,1.84160161]
[1755122046437,0.00703,122350.0,122340.0,1.73976161]
[1755122047254,0.00703,122350.0,122340.0,1.29126639]
[1755122047454,0.00703,122350.0,122340.0,1.73976161]
[1755122048262,0.00703,122350.0,122340.0,1.54388161]
[1755122048862,0.00703,122350.0,122340.0,1.41456161]
[1755122049068,0.00703,122350.0,122340.0,1.54356161]
[1755122051513,0.00703,122350.0,122340.0,1.84128161]
[1755122052087,0.00703,122350.0,122340.0,1.84341161]
[1755122052311,0.00703,122350.0,122340.0,1.39461161]
[1755122053602,0.00703,122350.0,122340.0,1.39248161]
[1755122054366,0.00703,122350.0,122340.0,1.26348161]
[1755122054541,0.00703,122350.0,122340.0,1.29040161]
[1755122054753,0.00703,122350.0,122340.0,1.16164161]
[1755122054966,0.00703,122350.0,122340.0,1.29032161]
[1755122056205,0.00703,122350.0,122340.0,1.09444161]
[1755122057025,0.00703,122350.0,122340.0,1.09657161]
[1755122057197,0.002,122350.0,122340.0,1.09657161]
[1755122057613,0.00508,122350.0,122340.0,1.09657161]
[1755122057814,0.00703,122350.0,122340.0,1.09444161]
[1755122058984,0.002,122350.0,122340.0,1.09657161]
[1755122059413,0.002,122350.0,122340.0,1.12328492]
[1755122059621,0.002,122350.0,122340.0,1.57178014]
[1755122060035,0.002,122350.0,122340.0,1.12328492]
[1755122061567,0.002,122350.0,122340.0,1.42100492]
[1755122061982,0.002,122350.0,122340.0,1.41251509]
[1755122062158,0.002,122350.0,122340.0,1.41507509]
[1755122063728,0.002,122350.0,122340.0,1.4234482]
[1755122063932,0.002,122350.0,122340.0,1.3216082]
[1755122064139,0.002,122350.0,122340.0,1.7736732]
[1755122064341,0.002,122350.0,122340.0,1.7711132]
[1755122066009,0.002,122350.0,122340.0,1.5752332]
[1755122066744,0.002,122350.0,122340.0,1.54851989]
[1755122067567,0.002,122350.0,122340.0,1.5752332]
[1755122069224,0.002,122350.0,122340.0,2.6927093]
[1755122069437,0.002,122350.0,122340.0,2.7340893]
[1755122070031,0.002,122350.0,122340.0,2.2852893]
[1755122071214,0.002,122350.0,122340.0,2.2661793]
[1755122071426,0.00331,122380.0,122340.0,2.57207324]
[1755122071646,0.00331,122380.0,122360.0,0.87121847]
[1755122071856,0.00204,122370.0,122360.0,0.87121847]
[1755122072054,0.00515,122370.0,122360.0,1.44807369]
[1755122072688,0.00515,122370.0,122360.0,1.450277]
[1755122073980,0.00631,122380.0,122360.0,1.85633231]
[1755122074207,0.00631,122380.0,122370.0,0.99989847]
[1755122074424,0.00524,122380.0,122370.0,0.42272325]
[1755122074642,0.00524,122380.0,122370.0,0.99989847]
[1755122074867,0.00224,122380.0,122370.0,1.00002178]
[1755122075101,0.00224,122380.0,122370.0,0.42284656]
[1755122075102,0.00535,122380.0,122370.0,0.42284656]
[1755122075341,0.00835,122380.0,122370.0,1.00010178]
[1755122075630,0.01135,122380.0,122370.0,0.55160656]
[1755122075857,0.01635,122380.0,122370.0,0.55160656]
[1755122076529,0.01335,122380.0,122370.0,0.55160656]
[1755122076747,0.01335,122380.0,122370.0,1.00010178]
[1755122076968,0.01735,122380.0,122370.0,1.00010178]
[1755122078714,0.01735,122380.0,122370.0,1.00006178]
[1755122079435,0.0122,122380.0,122370.0,1.43038678]
[1755122079654,0.0122,122380.0,122370.0,1.21212009]
[1755122080565,0.0082,122380.0,122370.0,1.21212009]
[1755122080757,0.0112,122380.0,122370.0,1.21212009]
[1755122080967,0.0032,122380.0,122370.0,1.20956009]
[1755122081218,0.0032,122380.0,122370.0,1.29549009]
[1755122081438,0.0072,122380.0,122370.0,1.29549009]
[1755122081648,0.0072,122380.0,122370.0,1.59317009]
[1755122083965,0.0072,122380.0,122370.0,1.49133009]
[1755122085437,0.0072,122380.0,122370.0,1.04283487]
[1755122085641,0.0072,122380.0,122370.0,1.49133009]
[1755122085855,0.0072,122380.0,122370.0,1.29549009]
[1755122088362,0.0072,122380.0,122370.0,1.31183396]
[1755122088568,0.0032,122380.0,122370.0,1.31439396]
[1755122088771,0.0002,122380.0,122370.0,1.31439396]
[1755122088977,0.0052,122380.0,122370.0,1.31439396]
[1755122089399,0.0032,122380.0,122370.0,1.31439396]
[1755122089812,0.0042,122380.0,122370.0,1.31439396]
[1755122090514,0.0042,122380.0,122370.0,1.31859396]
[1755122091101,0.0012,122380.0,122370.0,1.31859396]
[1755122091539,0.0022,122380.0,122370.0,1.61627396]
[1755122093555,0.0022,122380.0,122370.0,2.06507396]
[1755122093757,0.0022,122380.0,122370.0,2.06251396]
[1755122094578,0.0022,122380.0,122370.0,1.96067396]
[1755122095197,0.0022,122380.0,122370.0,1.96323396]
[1755122095774,0.0022,122380.0,122370.0,2.21588918]
[1755122095985,0.0022,122380.0,122370.0,2.25509918]
[1755122097119,0.0022,122380.0,122370.0,2.28009918]
[1755122097334,0.0022,122380.0,122370.0,2.51478383]
[1755122098541,0.0022,122380.0,122370.0,2.48978383]
[1755122098749,0.0022,122380.0,122370.0,2.51478383]
[1755122098962,0.00028323,122380.0,122370.0,2.51478383]
[1755122099627,0.00322,122410.0,122390.0,0.10227024]
[1755122099857,0.00371469,122410.0,122400.0,1.975187]
[1755122100234,0.00567469,122410.0,122400.0,1.47531031]
[1755122101305,0.00567469,122410.0,122400.0,1.56124031]
[1755122101448,0.00567469,122410.0,122400.0,1.85884031]
[1755122101672,0.00767469,122410.0,122400.0,1.85884031]
[1755122101882,0.00967469,122410.0,122400.0,1.85884031]
[1755122102098,0.00967469,122410.0,122400.0,1.832127]
[1755122102535,0.00967469,122410.0,122400.0,1.730287]
[1755122104462,0.00967469,122410.0,122400.0,1.534487]
[1755122104673,0.00967469,122410.0,122400.0,1.536597]
[1755122104877,0.00469469,122410.0,122400.0,1.536597]
[1755122105090,0.00469469,122410.0,122400.0,1.58778631]
[1755122105652,0.00967469,122410.0,122400.0,1.58778631]
[1755122106295,0.00469469,122410.0,122400.0,2.05292617]
[1755122106514,0.00469469,122410.0,122400.0,2.98070017]
[1755122106727,0.00469469,122410.0,122400.0,2.96030117]
[1755122107257,0.0002,122420.0,122400.0,3.00176639]
[1755122107485,0.00034828,122420.0,122410.0,5.00075153]
[1755122107719,0.00034828,122420.0,122410.0,5.00286153]
[1755122107936,0.00034828,122420.0,122410.0,5.00624884]
[1755122108383,0.00034828,122420.0,122410.0,5.45504884]
[1755122109048,0.00302,122450.0,122440.0,0.44226453]
[1755122109260,0.00302,122460.0,122450.0,0.10226248]
[1755122109474,0.00498,122460.0,122450.0,2.03440695]
[1755122109682,0.00498,122460.0,122450.0,2.06112026]
[1755122109897,0.00498,122460.0,122450.0,2.06323026]
[1755122110115,0.00498,122460.0,122450.0,2.06335357]
[1755122110323,0.00302,122470.0,122460.0,0.34]
[1755122110531,0.00498,122470.0,122460.0,1.02629178]
[1755122111076,0.00498,122470.0,122460.0,1.47491031]
[1755122111496,0.00498,122470.0,122460.0,1.77247031]
[1755122111692,0.00498,122470.0,122460.0,1.79724755]
[1755122111897,0.00498,122470.0,122460.0,1.79935755]
[1755122112100,0.00598,122470.0,122460.0,1.79935755]
[1755122112338,0.00598,122470.0,122460.0,1.69755755]
[1755122112536,0.00496,122470.0,122460.0,1.50179755]
[1755122112735,0.003,122470.0,122460.0,1.5258553]
[1755122112970,0.00034823,122480.0,122470.0,0.10226052]
[1755122113163,0.00034823,122480.0,122470.0,6.1678023]
[1755122113317,0.00034823,122480.0,122470.0,6.17259561]
[1755122113767,0.00034823,122480.0,122470.0,6.12638461]
[1755122113979,0.00034823,122480.0,122470.0,5.21929961]
[1755122114178,0.00134823,122480.0,122470.0,5.21929961]
[1755122114380,0.00134823,122480.0,122470.0,5.41013783]
[1755122114625,0.00134823,122480.0,122470.0,3.84391383]
[1755122114828,0.00134823,122480.0,122470.0,3.74245183]
[1755122115027,0.00434823,122480.0,122470.0,3.69292752]
[1755122115670,0.00434823,122480.0,122470.0,4.14142274]
[1755122116908,0.00334823,122480.0,122470.0,4.14142274]
[1755122117321,0.00334823,122480.0,122470.0,4.14342274]
[1755122117535,0.00034823,122480.0,122470.0,4.14342274]
[1755122119363,0.00034823,122480.0,122470.0,4.14668374]
[1755122120117,0.00034823,122480.0,122470.0,4.59548374]
[1755122120321,0.00302,122500.0,122490.0,0.01632786]
[1755122120597,0.00498,122500.0,122490.0,2.16236955]
[1755122120944,0.00322,122510.0,122500.0,0.34]
[1755122121143,0.00518,122510.0,122500.0,2.33136369]
[1755122121588,0.00518,122510.0,122500.0,2.55951369]
[1755122122202,0.00718,122510.0,122500.0,2.559637]
[1755122122396,0.00718,122510.0,122500.0,2.523931]
[1755122124139,0.00818,122510.0,122500.0,0.65946178]
[1755122128547,0.00818,122510.0,122500.0,0.21096656]
[1755122128719,0.00818,122510.0,122500.0,0.53134178]
[1755122128957,0.00818,122510.0,122500.0,0.65934178]
[1755122129603,0.00818,122510.0,122500.0,0.53134178]
[1755122129812,0.00818,122510.0,122500.0,0.65934178]
[1755122130019,0.00818,122510.0,122500.0,0.53134178]
[1755122130223,0.00818,122510.0,122500.0,0.65934178]
[1755122130421,0.00818,122510.0,122500.0,0.21084656]
[1755122130637,0.00818,122510.0,122500.0,0.65934178]
[1755122131465,0.00818,122510.0,122500.0,0.63306178]
[1755122131666,0.00818,122510.0,122500.0,0.95666178]
[1755122132086,0.00818,122510.0,122500.0,0.82870178]
[1755122132296,0.00818,122510.0,122500.0,0.87389853]
[1755122133892,0.00818,122510.0,122500.0,0.42540331]
[1755122134090,0.00818,122510.0,122500.0,0.87389853]
[1755122134811,0.00718,122510.0,122500.0,0.87389853]
[1755122135008,0.00918,122510.0,122500.0,0.87389853]
[1755122135414,0.00718,122510.0,122500.0,0.77205853]
[1755122135648,0.01018,122510.0,122500.0,0.77205853]
[1755122137424,0.01018,122510.0,122500.0,0.57641853]
[1755122139392,0.02535394,122510.0,122500.0,0.57641853]
[1755122141079,0.02536088,122510.0,122500.0,0.57641853]
[1755122141285,0.02536088,122510.0,122500.0,0.44861853]
[1755122141491,0.02536088,122510.0,122500.0,0.87361853]
[1755122141898,0.02536088,122510.0,122500.0,0.42512331]
[1755122142310,0.02536088,122510.0,122500.0,0.74597853]
[1755122142516,0.02536088,122510.0,122500.0,0.87361853]
[1755122144286,0.02536426,122510.0,122500.0,0.87361853]
[1755122144515,0.02536426,122510.0,122500.0,0.64425853]
[1755122144765,0.02536426,122510.0,122500.0,0.77189853]
[1755122145389,0.02536426,122510.0,122500.0,0.64425853]
[1755122145595,0.02536426,122510.0,122500.0,0.77189853]
[1755122146001,0.02536426,122510.0,122500.0,0.44861853]
[1755122146213,0.02536426,122510.0,122500.0,0.57625853]
[1755122151087,0.02536426,122510.0,122500.0,0.12776331]
[1755122151479,0.02536426,122510.0,122500.0,0.87365853]
[1755122154321,0.02536426,122510.0,122500.0,0.87569853]
[1755122154520,0.01018,122510.0,122500.0,0.87569853]
[1755122154764,0.01018,122510.0,122500.0,0.87365853]
[1755122155619,0.01018,122510.0,122500.0,0.87361853]
[1755122156923,0.01018,122510.0,122500.0,0.42512331]
[1755122157105,0.01018,122510.0,122500.0,0.87361853]
[1755122157729,0.01018,122510.0,122500.0,0.77189853]
[1755122161567,0.01018,122510.0,122500.0,0.87361853]
[1755122162926,0.01018,122510.0,122500.0,0.38640631]
[1755122163176,0.0052,122510.0,122500.0,0.48237631]
[1755122164030,0.0052,122510.0,122500.0,0.28669631]
[1755122164274,0.01027,122510.0,122500.0,0.41429631]
[1755122166887,0.01027,122510.0,122500.0,0.12961]
[1755122167055,0.01027,122510.0,122500.0,0.57810522]
[1755122169089,0.01027,122510.0,122500.0,0.12961]
[1755122169338,0.01027,122510.0,122500.0,0.57810522]
[1755122171427,0.01027,122510.0,122500.0,0.87550522]
[1755122174215,0.01027,122510.0,122500.0,0.32529]
[1755122174474,0.01027,122510.0,122500.0,0.77378522]
[1755122174682,0.01027,122510.0,122500.0,0.57806522]
[1755122180691,0.01027,122510.0,122500.0,0.46493531]
[1755122181613,0.01027,122510.0,122500.0,0.76233531]
[1755122186560,0.01027,122510.0,122500.0,0.66061531]
[1755122187542,0.01027,122510.0,122500.0,0.32525]
[1755122187745,0.01027,122510.0,122500.0,0.66061531]
[1755122187950,0.01027,122510.0,122500.0,0.99598062]
[1755122188150,0.01027,122510.0,122500.0,0.66061531]
[1755122190968,0.01027,122510.0,122500.0,0.99598062]
[1755122191739,0.01027,122510.0,122500.0,1.09770062]
[1755122192582,0.01027,122510.0,122500.0,0.77446062]
[1755122192790,0.01027,122510.0,122500.0,1.09762062]
[1755122195188,0.01027,122510.0,122500.0,0.76225531]
[1755122196719,0.01027,122510.0,122500.0,0.66053531]
[1755122198582,0.01027,122510.0,122500.0,0.32517]
[1755122198794,0.01027,122510.0,122500.0,0.46485531]
[1755122201614,0.01027,122510.0,122500.0,0.76221531]
[1755122202395,0.01027,122510.0,122500.0,1.09758062]
[1755122203254,0.0052,122510.0,122500.0,1.09758062]
[1755122204400,0.00726,122510.0,122500.0,1.09557062]
[1755122204628,0.025,122480.0,122450.0,0.33536531]
[1755122204841,0.025,122480.0,122460.0,0.19568]
[1755122204842,0.39359803,122470.0,122460.0,0.19568]
[1755122205054,0.38850531,122470.0,122460.0,0.32312]
[1755122205271,0.75560415,122470.0,122460.0,0.32312]
[1755122205449,0.78008015,122470.0,122460.0,0.32312]
[1755122205925,0.78008015,122470.0,122460.0,0.19568]
[1755122206135,0.78008015,122470.0,122460.0,0.32312]
[1755122206746,0.44471484,122470.0,122460.0,0.32312]
[1755122207380,0.44871484,122470.0,122460.0,0.32312]
[1755122207599,0.45471484,122470.0,122460.0,0.32412]
[1755122207806,0.90227242,122470.0,122460.0,0.32412]
[1755122208425,0.91060058,122470.0,122460.0,0.32412]
[1755122211480,0.91060058,122470.0,122460.0,0.42588]
[1755122212563,0.99332383,122470.0,122460.0,0.29844]
[1755122212766,0.99332383,122470.0,122460.0,0.42584]
[1755122212963,0.99332383,122470.0,122460.0,0.42588]
[1755122217403,0.99332383,122470.0,122460.0,0.29844]
[1755122217605,0.99332383,122470.0,122460.0,0.42584]
[1755122220197,0.99332383,122470.0,122460.0,0.29844]
[1755122220403,0.99332383,122470.0,122460.0,0.10276]
[1755122220603,0.99332383,122470.0,122460.0,0.42592]
[1755122221233,0.99332383,122470.0,122460.0,0.42492]
[1755122221463,0.98332383,122470.0,122460.0,0.42492]
[1755122221791,0.98932383,122470.0,122460.0,0.42492]
[1755122222006,1.00441992,122470.0,122460.0,0.42492]
[1755122222249,1.01441992,122470.0,122460.0,0.29852]
[1755122222420,1.03786212,122470.0,122460.0,0.42592]
[1755122222822,1.12034655,122470.0,122460.0,0.42592]
[1755122223087,1.03786212,122470.0,122460.0,0.42592]
[1755122223562,1.05967987,122470.0,122460.0,0.42592]
[1755122223780,1.04458378,122470.0,122460.0,0.42592]
[1755122223987,1.05969103,122470.0,122460.0,0.42592]
[1755122224990,1.01443108,122470.0,122460.0,0.42592]
[1755122226016,1.01443108,122470.0,122460.0,0.42588]
[1755122226419,1.01443108,122470.0,122460.0,0.29852]
[1755122226732,1.01443108,122470.0,122460.0,0.42588]
[1755122226964,1.17773637,122470.0,122460.0,0.42588]
[1755122227138,1.19955412,122470.0,122460.0,0.29852]
[1755122227310,1.19955412,122470.0,122460.0,0.42588]
[1755122227311,1.17773637,122470.0,122460.0,0.42588]
[1755122229563,1.17773637,122470.0,122460.0,0.29852]
[1755122229744,1.17773637,122470.0,122460.0,0.42588]
[1755122234124,1.19520352,122470.0,122460.0,0.42588]
[1755122234752,1.19525821,122470.0,122460.0,0.42588]
[1755122236788,0.58439534,122470.0,122460.0,0.42588]
[1755122237012,0.19672819,122470.0,122460.0,0.42791]
[1755122237190,0.19672819,122470.0,122460.0,0.43047]
[1755122237696,0.53672819,122470.0,122460.0,0.43047]
[1755122240568,0.98428577,122470.0,122460.0,0.43047]
[1755122240969,0.22172819,122470.0,122460.0,0.46999]
[1755122241759,0.56172819,122470.0,122460.0,0.46999]
[1755122242361,0.55340003,122470.0,122460.0,0.46999]
[1755122245985,0.54740003,122470.0,122460.0,0.46999]